[Event "November 21 Late 2023"]
[Site "https://www.chess.com"]
[Date "2023.11.21"]
[Round "7"]
[White "hristos03"]
[Black "Pourkashiyan, Atousa"]
[Result "0-1"]
[Board "91"]
[TimeControl "180+1"]
[BlackFideId "12502014"]
[WhiteElo "2387"]
[BlackElo "2221"]
[BlackTeam "USA"]
[WhiteClock "0:00:00"]
[BlackClock "0:01:16"]

1. e4 {[%clk 0:02:59]}  c5 {[%clk 0:02:57]} 2. Nf3 {[%clk 0:02:59]}  e6 {[%clk 0:02:55]} 3. d4 {[%clk 0:02:59]}  cxd4 {[%clk 0:02:56]} 4. Nxd4 {[%clk 0:03:00]}  a6 {[%clk 0:02:57]} 5. c4 {[%clk 0:02:57]}  Nf6 {[%clk 0:02:56]} 6. Nc3 {[%clk 0:02:57]}  Qc7 {[%clk 0:02:55]} 7. a3 {[%clk 0:02:51]}  b6 {[%clk 0:02:52]} 8. Be3 {[%clk 0:02:48]}  Bb7 {[%clk 0:02:52]} 9. f3 {[%clk 0:02:48]}  d6 {[%clk 0:02:52]} 10. Be2 {[%clk 0:02:46]}  Nbd7 {[%clk 0:02:53]} 11. O-O {[%clk 0:02:43]}  Be7 {[%clk 0:02:53]} 12. a4 {[%clk 0:02:41]}  O-O {[%clk 0:02:52]} 13. a5 {[%clk 0:02:41]}  bxa5 {[%clk 0:02:51]} 14. Nb3 {[%clk 0:02:41]}  Rab8 {[%clk 0:02:41]} 15. Nxa5 {[%clk 0:02:38]}  Ba8 {[%clk 0:02:42]} 16. Qd2 {[%clk 0:02:21]}  Nc5 {[%clk 0:02:33]} 17. Kh1 {[%clk 0:02:14]}  Rfd8 {[%clk 0:02:24]} 18. Rfb1 {[%clk 0:02:04]}  d5 {[%clk 0:02:23]} 19. cxd5 {[%clk 0:01:56]}  exd5 {[%clk 0:02:24]} 20. Bf4 {[%clk 0:01:42]}  Bd6 {[%clk 0:02:22]} 21. Bxd6 {[%clk 0:01:42]}  Qxd6 {[%clk 0:02:22]} 22. exd5 {[%clk 0:01:40]}  Nxd5 {[%clk 0:02:19]} 23. Nxd5 {[%clk 0:01:40]}  Bxd5 {[%clk 0:02:15]} 24. b4 {[%clk 0:01:32]}  Ne6 {[%clk 0:02:07]} 25. Qe1 {[%clk 0:00:35]}  h6 {[%clk 0:02:02]} 26. Nc4 {[%clk 0:00:27]}  Qf4 {[%clk 0:01:55]} 27. Na3 {[%clk 0:00:06]}  Bb7 {[%clk 0:01:48]} 28. Qg3 {[%clk 0:00:04]}  Qf6 {[%clk 0:01:45]} 29. Bf1 {[%clk 0:00:03]}  Nd4 {[%clk 0:01:42]} 30. Nc4 {[%clk 0:00:02]}  Bd5 {[%clk 0:01:31]} 31. Ne3 {[%clk 0:00:02]}  Bb7 {[%clk 0:01:28]} 32. Ng4 {[%clk 0:00:02]}  Qg6 {[%clk 0:01:20]} 33. Ne5 {[%clk 0:00:01]}  Qxg3 {[%clk 0:01:19]} 34. hxg3 {[%clk 0:00:02]}  Re8 {[%clk 0:01:19]} 35. Ng4 {[%clk 0:00:00]}  Nxf3 {[%clk 0:01:16]} 0-1

[Event "November 21 Late 2023"]
[Site "https://www.chess.com"]
[Date "2023.11.21"]
[Round "7"]
[White "Bugayev, Vladimir"]
[Black "BM223344"]
[Result "0-1"]
[Board "93"]
[TimeControl "180+1"]
[WhiteFideId "30901480"]
[WhiteElo "2375"]
[BlackElo "2478"]
[WhiteTeam "USA"]
[WhiteClock "0:00:00"]
[BlackClock "0:00:20"]

1. e4 {[%clk 0:03:00]}  e6 {[%clk 0:03:00]} 2. d4 {[%clk 0:03:00]}  d5 {[%clk 0:02:59]} 3. Bd3 {[%clk 0:03:00]}  Nf6 {[%clk 0:02:58]} 4. e5 {[%clk 0:03:01]}  Nfd7 {[%clk 0:02:58]} 5. Ne2 {[%clk 0:03:01]}  c5 {[%clk 0:02:59]} 6. c3 {[%clk 0:03:02]}  Nc6 {[%clk 0:02:59]} 7. a3 {[%clk 0:03:02]}  Be7 {[%clk 0:03:00]} 8. O-O {[%clk 0:02:52]}  O-O {[%clk 0:03:00]} 9. Bc2 {[%clk 0:02:49]}  f5 {[%clk 0:02:59]} 10. exf6 {[%clk 0:02:38]}  Nxf6 {[%clk 0:02:56]} 11. dxc5 {[%clk 0:02:23]}  Bxc5 {[%clk 0:02:50]} 12. Nd2 {[%clk 0:02:23]}  e5 {[%clk 0:02:50]} 13. Ng3 {[%clk 0:02:19]}  Bg4 {[%clk 0:02:48]} 14. Qe1 {[%clk 0:02:17]}  e4 {[%clk 0:02:48]} 15. Nb3 {[%clk 0:02:16]}  Bb6 {[%clk 0:02:48]} 16. Be3 {[%clk 0:02:16]}  Ne5 {[%clk 0:02:45]} 17. Nd4 {[%clk 0:02:12]}  Nc4 {[%clk 0:02:43]} 18. Bc1 {[%clk 0:02:02]}  Rc8 {[%clk 0:02:38]} 19. h3 {[%clk 0:02:02]}  Bd7 {[%clk 0:02:37]} 20. b3 {[%clk 0:01:49]}  Bxd4 {[%clk 0:02:09]} 21. cxd4 {[%clk 0:01:35]}  Nd6 {[%clk 0:02:09]} 22. Bd1 {[%clk 0:01:31]}  Qb6 {[%clk 0:02:02]} 23. Be3 {[%clk 0:01:28]}  Bb5 {[%clk 0:02:02]} 24. Be2 {[%clk 0:01:18]}  Rc2 {[%clk 0:01:56]} 25. Bxb5 {[%clk 0:01:12]}  Qxb5 {[%clk 0:01:55]} 26. Qb4 {[%clk 0:01:12]}  Qxb4 {[%clk 0:01:30]} 27. axb4 {[%clk 0:01:13]}  Nb5 {[%clk 0:01:29]} 28. Nf5 {[%clk 0:01:04]}  g6 {[%clk 0:01:18]} 29. Nh6+ {[%clk 0:00:54]}  Kg7 {[%clk 0:01:16]} 30. Ng4 {[%clk 0:00:50]}  Nxg4 {[%clk 0:01:10]} 31. hxg4 {[%clk 0:00:51]}  Rfc8 {[%clk 0:01:10]} 32. Bf4 {[%clk 0:00:45]}  Rb2 {[%clk 0:01:01]} 33. Be5+ {[%clk 0:00:45]}  Kg8 {[%clk 0:01:01]} 34. Rfc1 {[%clk 0:00:45]}  Rxc1+ {[%clk 0:01:01]} 35. Rxc1 {[%clk 0:00:45]}  Rxb3 {[%clk 0:01:01]} 36. Rc5 {[%clk 0:00:45]}  a6 {[%clk 0:01:01]} 37. Rxd5 {[%clk 0:00:45]}  Rxb4 {[%clk 0:01:02]} 38. Rd8+ {[%clk 0:00:44]}  Kf7 {[%clk 0:01:02]} 39. Rd7+ {[%clk 0:00:44]}  Ke6 {[%clk 0:01:03]} 40. Rxb7 {[%clk 0:00:45]}  Rb1+ {[%clk 0:01:00]} 41. Kh2 {[%clk 0:00:44]}  h5 {[%clk 0:00:59]} 42. Rb6+ {[%clk 0:00:43]}  Kd5 {[%clk 0:00:59]} 43. Rxa6 {[%clk 0:00:42]}  hxg4 {[%clk 0:00:58]} 44. Rxg6 {[%clk 0:00:42]}  Rb2 {[%clk 0:00:54]} 45. Rb6 {[%clk 0:00:31]}  Kc4 {[%clk 0:00:41]} 46. Rc6+ {[%clk 0:00:19]}  Kd3 {[%clk 0:00:41]} 47. Kg3 {[%clk 0:00:16]}  Rb3 {[%clk 0:00:30]} 48. Kxg4 {[%clk 0:00:15]}  Nc3 {[%clk 0:00:24]} 49. Rd6 {[%clk 0:00:07]}  Nd1 {[%clk 0:00:24]} 50. f4 {[%clk 0:00:06]}  e3 {[%clk 0:00:24]} 51. f5 {[%clk 0:00:06]}  e2 {[%clk 0:00:24]} 52. Bg3 {[%clk 0:00:06]}  Kd2 {[%clk 0:00:23]} 53. Bh4 {[%clk 0:00:06]}  Ne3+ {[%clk 0:00:21]} 54. Kg5 {[%clk 0:00:05]}  Nxg2 {[%clk 0:00:21]} 55. Bf2 {[%clk 0:00:05]}  Rf3 {[%clk 0:00:21]} 56. Re6 {[%clk 0:00:03]}  Rxf2 {[%clk 0:00:21]} 57. f6 {[%clk 0:00:00]}  Ne3 {[%clk 0:00:20]} 0-1

[Event "November 21 Late 2023"]
[Site "https://www.chess.com"]
[Date "2023.11.21"]
[Round "7"]
[White "Musalov, Ruslan"]
[Black "Ward, Ieuan C"]
[Result "1-0"]
[Board "94"]
[TimeControl "180+1"]
[WhiteFideId "4141490"]
[BlackFideId "406627"]
[WhiteElo "2268"]
[BlackElo "2367"]
[WhiteTeam "RUS"]
[BlackTeam "ENG"]
[WhiteClock "0:02:20"]
[BlackClock "0:01:11"]

1. e4 {[%clk 0:02:58]}  c5 {[%clk 0:02:58]} 2. d4 {[%clk 0:02:58]}  cxd4 {[%clk 0:02:57]} 3. c3 {[%clk 0:02:59]}  dxc3 {[%clk 0:02:58]} 4. Nxc3 {[%clk 0:02:59]}  Nc6 {[%clk 0:02:59]} 5. Nf3 {[%clk 0:02:59]}  d6 {[%clk 0:02:59]} 6. Bc4 {[%clk 0:03:00]}  a6 {[%clk 0:03:00]} 7. O-O {[%clk 0:03:00]}  Nf6 {[%clk 0:03:01]} 8. h3 {[%clk 0:03:00]}  e6 {[%clk 0:02:59]} 9. Qe2 {[%clk 0:03:00]}  Be7 {[%clk 0:02:58]} 10. Rd1 {[%clk 0:03:00]}  e5 {[%clk 0:02:57]} 11. Bg5 {[%clk 0:03:00]}  O-O {[%clk 0:02:55]} 12. Qd2 {[%clk 0:03:00]}  Be6 {[%clk 0:02:29]} 13. Bxf6 {[%clk 0:02:55]}  gxf6 {[%clk 0:02:19]} 14. Nd5 {[%clk 0:02:47]}  Bxd5 {[%clk 0:02:13]} 15. Bxd5 {[%clk 0:02:47]}  Qb6 {[%clk 0:01:57]} 16. Qh6 {[%clk 0:02:38]}  Rfd8 {[%clk 0:01:34]} 17. Nh4 {[%clk 0:02:37]}  Bf8 {[%clk 0:01:33]} 18. Qxf6 {[%clk 0:02:30]}  Rd7 {[%clk 0:01:27]} 19. Rd3 {[%clk 0:02:26]}  Ne7 {[%clk 0:01:11]} 20. Bxf7# {[%clk 0:02:20]} 1-0

[Event "November 21 Late 2023"]
[Site "https://www.chess.com"]
[Date "2023.11.21"]
[Round "7"]
[White "zano2023"]
[Black "Van Osch, Mees"]
[Result "0-1"]
[Board "98"]
[TimeControl "180+1"]
[BlackFideId "1035967"]
[WhiteElo "2218"]
[BlackElo "2324"]
[BlackTeam "NED"]
[WhiteClock "0:01:06"]
[BlackClock "0:01:35"]

1. d4 {[%clk 0:03:00]}  d6 {[%clk 0:02:59]} 2. Nf3 {[%clk 0:03:00]}  Nf6 {[%clk 0:02:57]} 3. Nbd2 {[%clk 0:03:00]}  Bg4 {[%clk 0:02:57]} 4. e4 {[%clk 0:02:59]}  Nc6 {[%clk 0:02:55]} 5. c3 {[%clk 0:02:59]}  g6 {[%clk 0:02:53]} 6. Bd3 {[%clk 0:02:58]}  Bh6 {[%clk 0:02:54]} 7. h3 {[%clk 0:02:57]}  Bxf3 {[%clk 0:02:54]} 8. Nxf3 {[%clk 0:02:57]}  Bxc1 {[%clk 0:02:54]} 9. Qxc1 {[%clk 0:02:58]}  O-O {[%clk 0:02:55]} 10. Qh6 {[%clk 0:02:58]}  e5 {[%clk 0:02:54]} 11. d5 {[%clk 0:02:46]}  Ne7 {[%clk 0:02:52]} 12. Ng5 {[%clk 0:02:42]}  Kh8 {[%clk 0:02:51]} 13. O-O {[%clk 0:02:39]}  Neg8 {[%clk 0:02:51]} 14. Qh4 {[%clk 0:02:36]}  Nh5 {[%clk 0:02:51]} 15. g4 {[%clk 0:02:30]}  h6 {[%clk 0:02:41]} 16. gxh5 {[%clk 0:02:23]}  hxg5 {[%clk 0:02:38]} 17. Qg4 {[%clk 0:02:20]}  Nh6 {[%clk 0:02:26]} 18. Qf3 {[%clk 0:02:13]}  Kg7 {[%clk 0:02:12]} 19. Qe2 {[%clk 0:01:52]}  Qd7 {[%clk 0:02:05]} 20. Kh2 {[%clk 0:01:51]}  g4 {[%clk 0:01:56]} 21. hxg6 {[%clk 0:01:43]}  fxg6 {[%clk 0:01:44]} 22. Rg1 {[%clk 0:01:43]}  Rf4 {[%clk 0:01:38]} 23. Rg3 {[%clk 0:01:40]}  Raf8 {[%clk 0:01:36]} 24. Rg2 {[%clk 0:01:06]}  gxh3 {[%clk 0:01:35]} 0-1

[Event "November 21 Late 2023"]
[Site "https://www.chess.com"]
[Date "2023.11.21"]
[Round "7"]
[White "Feliz Dotel, Dewar Bienvenido"]
[Black "Estrada Nieto, Julian"]
[Result "0-1"]
[Board "99"]
[TimeControl "180+1"]
[WhiteFideId "6402801"]
[BlackFideId "5101018"]
[WhiteElo "2069"]
[BlackElo "2161"]
[WhiteTeam "DOM"]
[BlackTeam "ESP"]
[WhiteClock "0:00:00"]
[BlackClock "0:00:49"]

1. d4 {[%clk 0:02:59]}  Nf6 {[%clk 0:02:59]} 2. e3 {[%clk 0:03:00]}  d5 {[%clk 0:02:58]} 3. Nf3 {[%clk 0:03:00]}  c5 {[%clk 0:02:54]} 4. dxc5 {[%clk 0:03:00]}  e6 {[%clk 0:02:54]} 5. c4 {[%clk 0:03:00]}  Bxc5 {[%clk 0:02:52]} 6. Nc3 {[%clk 0:03:00]}  dxc4 {[%clk 0:02:48]} 7. Qxd8+ {[%clk 0:03:00]}  Kxd8 {[%clk 0:02:48]} 8. Bxc4 {[%clk 0:03:00]}  a6 {[%clk 0:02:49]} 9. O-O {[%clk 0:02:59]}  Ke7 {[%clk 0:02:49]} 10. a3 {[%clk 0:02:58]}  b5 {[%clk 0:02:49]} 11. Be2 {[%clk 0:02:54]}  Bb7 {[%clk 0:02:49]} 12. b4 {[%clk 0:02:46]}  Bd6 {[%clk 0:02:49]} 13. Bb2 {[%clk 0:02:46]}  Nbd7 {[%clk 0:02:49]} 14. Rac1 {[%clk 0:02:40]}  Rhc8 {[%clk 0:02:45]} 15. Nb1 {[%clk 0:02:37]}  g6 {[%clk 0:02:37]} 16. h3 {[%clk 0:02:36]}  Ne4 {[%clk 0:02:35]} 17. Nbd2 {[%clk 0:02:30]}  Nxd2 {[%clk 0:02:28]} 18. Nxd2 {[%clk 0:02:30]}  Nb6 {[%clk 0:02:29]} 19. Bd4 {[%clk 0:02:18]}  Na4 {[%clk 0:02:26]} 20. Bf3 {[%clk 0:02:04]}  Bxf3 {[%clk 0:02:26]} 21. Nxf3 {[%clk 0:02:05]}  f6 {[%clk 0:02:26]} 22. Nd2 {[%clk 0:01:52]}  e5 {[%clk 0:02:24]} 23. Ba1 {[%clk 0:01:52]}  Rxc1 {[%clk 0:02:13]} 24. Rxc1 {[%clk 0:01:52]}  a5 {[%clk 0:02:14]} 25. Ne4 {[%clk 0:01:33]}  axb4 {[%clk 0:02:13]} 26. Nxd6 {[%clk 0:01:33]}  Kxd6 {[%clk 0:02:09]} 27. axb4 {[%clk 0:01:33]}  Nb6 {[%clk 0:01:59]} 28. f4 {[%clk 0:01:31]}  Nc4 {[%clk 0:01:57]} 29. fxe5+ {[%clk 0:01:22]}  fxe5 {[%clk 0:01:57]} 30. Rd1+ {[%clk 0:01:19]}  Ke6 {[%clk 0:01:56]} 31. e4 {[%clk 0:01:20]}  Ra2 {[%clk 0:01:52]} 32. Bc3 {[%clk 0:01:08]}  Rxg2+ {[%clk 0:01:46]} 33. Kh1 {[%clk 0:00:47]}  Rg3 {[%clk 0:01:42]} 34. Be1 {[%clk 0:00:41]}  Rxh3+ {[%clk 0:01:41]} 35. Kg2 {[%clk 0:00:41]}  Re3 {[%clk 0:01:39]} 36. Bf2 {[%clk 0:00:37]}  Rxe4 {[%clk 0:01:38]} 37. Rd8 {[%clk 0:00:35]}  Re2 {[%clk 0:01:25]} 38. Kf3 {[%clk 0:00:34]}  Rd2 {[%clk 0:01:20]} 39. Re8+ {[%clk 0:00:30]}  Kf7 {[%clk 0:01:12]} 40. Rb8 {[%clk 0:00:29]}  e4+ {[%clk 0:01:06]} 41. Kg3 {[%clk 0:00:23]}  e3 {[%clk 0:01:05]} 42. Be1 {[%clk 0:00:06]}  Rd1 {[%clk 0:01:04]} 43. Bc3 {[%clk 0:00:07]}  Rc1 {[%clk 0:01:00]} 44. Rxb5 {[%clk 0:00:04]}  Rxc3 {[%clk 0:00:59]} 45. Rb7+ {[%clk 0:00:04]}  Kf6 {[%clk 0:00:58]} 46. b5 {[%clk 0:00:00]}  Rc2 {[%clk 0:00:49]} 0-1

[Event "November 21 Late 2023"]
[Site "https://www.chess.com"]
[Date "2023.11.21"]
[Round "7"]
[White "Szente Varga, Fruzsina"]
[Black "Toniutti, Ezio"]
[Result "0-1"]
[Board "101"]
[TimeControl "180+1"]
[WhiteFideId "712264"]
[BlackFideId "113034"]
[WhiteElo "1994"]
[BlackElo "2215"]
[WhiteTeam "HUN"]
[BlackTeam "ARG"]
[WhiteClock "0:00:48"]
[BlackClock "0:00:15"]

1. e4 {[%clk 0:03:00]}  e5 {[%clk 0:02:55]} 2. d4 {[%clk 0:03:00]}  exd4 {[%clk 0:02:55]} 3. Qxd4 {[%clk 0:03:01]}  Nc6 {[%clk 0:02:56]} 4. Qe3 {[%clk 0:03:01]}  Nf6 {[%clk 0:02:55]} 5. Nc3 {[%clk 0:03:00]}  Bb4 {[%clk 0:02:55]} 6. Bd2 {[%clk 0:03:01]}  O-O {[%clk 0:02:55]} 7. a3 {[%clk 0:03:01]}  Ba5 {[%clk 0:02:54]} 8. O-O-O {[%clk 0:02:57]}  Re8 {[%clk 0:02:54]} 9. f3 {[%clk 0:02:52]}  d5 {[%clk 0:02:36]} 10. Qg5 {[%clk 0:02:51]}  d4 {[%clk 0:02:29]} 11. Nce2 {[%clk 0:02:43]}  Bb6 {[%clk 0:02:17]} 12. h4 {[%clk 0:02:35]}  Be6 {[%clk 0:02:06]} 13. Nf4 {[%clk 0:02:32]}  Qd6 {[%clk 0:02:01]} 14. h5 {[%clk 0:02:23]}  h6 {[%clk 0:01:58]} 15. Qh4 {[%clk 0:02:19]}  Ne5 {[%clk 0:01:50]} 16. g4 {[%clk 0:02:13]}  Nh7 {[%clk 0:01:46]} 17. Nxe6 {[%clk 0:02:08]}  Qxe6 {[%clk 0:01:44]} 18. Kb1 {[%clk 0:02:08]}  d3 {[%clk 0:01:34]} 19. Bc3 {[%clk 0:01:41]}  dxc2+ {[%clk 0:01:20]} 20. Kxc2 {[%clk 0:01:42]}  Bxg1 {[%clk 0:01:20]} 21. Rxg1 {[%clk 0:01:41]}  Nxf3 {[%clk 0:01:19]} 22. Qf2 {[%clk 0:01:39]}  Nxg1 {[%clk 0:01:12]} 23. Qxg1 {[%clk 0:01:39]}  Ng5 {[%clk 0:01:09]} 24. Bd3 {[%clk 0:01:39]}  Rad8 {[%clk 0:01:07]} 25. Re1 {[%clk 0:01:30]}  Nf3 {[%clk 0:01:00]} 26. Qg2 {[%clk 0:01:26]}  Nxe1+ {[%clk 0:00:58]} 27. Bxe1 {[%clk 0:01:27]}  Rxd3 {[%clk 0:00:51]} 28. Kxd3 {[%clk 0:01:27]}  Qb3+ {[%clk 0:00:49]} 29. Bc3 {[%clk 0:01:27]}  Rd8+ {[%clk 0:00:39]} 30. Ke3 {[%clk 0:01:27]}  Qb6+ {[%clk 0:00:36]} 31. Ke2 {[%clk 0:01:22]}  Qb5+ {[%clk 0:00:34]} 32. Ke1 {[%clk 0:01:22]}  Qd3 {[%clk 0:00:33]} 33. Qe2 {[%clk 0:01:14]}  Qg3+ {[%clk 0:00:25]} 34. Kf1 {[%clk 0:01:10]}  Rd3 {[%clk 0:00:26]} 35. Be1 {[%clk 0:01:03]}  Rf3+ {[%clk 0:00:23]} 36. Bf2 {[%clk 0:01:03]}  Qxg4 {[%clk 0:00:22]} 37. Ke1 {[%clk 0:00:59]}  Qxh5 {[%clk 0:00:19]} 38. Bd4 {[%clk 0:00:55]}  Qh1+ {[%clk 0:00:17]} 39. Kd2 {[%clk 0:00:55]}  Qf1 {[%clk 0:00:16]} 40. Qh2 {[%clk 0:00:48]}  Qd3+ {[%clk 0:00:15]} 41. Kc1 {[%clk 0:00:48]}  Rf1# {[%clk 0:00:15]} 0-1

[Event "November 21 Late 2023"]
[Site "https://www.chess.com"]
[Date "2023.11.21"]
[Round "7"]
[White "Eggleston, Thomas A"]
[Black "ExchangeAB"]
[Result "1-0"]
[Board "102"]
[TimeControl "180+1"]
[WhiteFideId "412139"]
[WhiteElo "2169"]
[BlackElo "2481"]
[WhiteTeam "ENG"]
[WhiteClock "0:01:21"]
[BlackClock "0:01:05"]

1. e4 {[%clk 0:03:00]}  c6 {[%clk 0:03:00]} 2. Nf3 {[%clk 0:03:00]}  d5 {[%clk 0:03:01]} 3. d3 {[%clk 0:03:01]}  Bg4 {[%clk 0:03:00]} 4. Nbd2 {[%clk 0:02:59]}  e6 {[%clk 0:03:00]} 5. h3 {[%clk 0:02:58]}  Bh5 {[%clk 0:03:00]} 6. g4 {[%clk 0:02:57]}  Bg6 {[%clk 0:02:59]} 7. Ne5 {[%clk 0:02:57]}  Nd7 {[%clk 0:02:59]} 8. Nxg6 {[%clk 0:02:57]}  hxg6 {[%clk 0:03:00]} 9. Bg2 {[%clk 0:02:57]}  Bc5 {[%clk 0:03:00]} 10. b4 {[%clk 0:02:50]}  Bxb4 {[%clk 0:02:55]} 11. Rb1 {[%clk 0:02:49]}  Bxd2+ {[%clk 0:02:40]} 12. Qxd2 {[%clk 0:02:41]}  Qc7 {[%clk 0:02:35]} 13. Ba3 {[%clk 0:02:23]}  Ngf6 {[%clk 0:02:30]} 14. f4 {[%clk 0:02:12]}  O-O-O {[%clk 0:02:27]} 15. e5 {[%clk 0:02:08]}  Ng8 {[%clk 0:02:20]} 16. Bd6 {[%clk 0:02:05]}  Qb6 {[%clk 0:01:50]} 17. Rxb6 {[%clk 0:02:04]}  axb6 {[%clk 0:01:48]} 18. Kf2 {[%clk 0:01:58]}  f6 {[%clk 0:01:26]} 19. Qb4 {[%clk 0:01:54]}  fxe5 {[%clk 0:01:23]} 20. fxe5 {[%clk 0:01:54]}  Nh6 {[%clk 0:01:20]} 21. Qa3 {[%clk 0:01:51]}  Nc5 {[%clk 0:01:11]} 22. Qa7 {[%clk 0:01:34]}  Nf7 {[%clk 0:01:04]} 23. Qb8+ {[%clk 0:01:22]}  Kd7 {[%clk 0:01:04]} 24. Qc7+ {[%clk 0:01:21]}  Ke8 {[%clk 0:01:05]} 25. Qe7# {[%clk 0:01:21]} 1-0

[Event "November 21 Late 2023"]
[Site "https://www.chess.com"]
[Date "2023.11.21"]
[Round "7"]
[White "Serban, Cristian-Stefan"]
[Black "Cooper, Aaron"]
[Result "1-0"]
[Board "103"]
[TimeControl "180+1"]
[WhiteFideId "1241443"]
[BlackFideId "2634945"]
[WhiteElo "2028"]
[BlackElo "2333"]
[WhiteTeam "ROU"]
[BlackTeam "CAN"]
[WhiteClock "0:01:02"]
[BlackClock "0:00:02"]

1. Nf3 {[%clk 0:03:00]}  Nf6 {[%clk 0:02:58]} 2. e3 {[%clk 0:03:01]}  d5 {[%clk 0:02:57]} 3. c4 {[%clk 0:03:02]}  e6 {[%clk 0:02:57]} 4. b3 {[%clk 0:02:59]}  Be7 {[%clk 0:02:55]} 5. Bb2 {[%clk 0:02:59]}  O-O {[%clk 0:02:55]} 6. d4 {[%clk 0:02:59]}  c5 {[%clk 0:02:54]} 7. Nc3 {[%clk 0:02:59]}  Nc6 {[%clk 0:02:52]} 8. cxd5 {[%clk 0:02:55]}  exd5 {[%clk 0:02:51]} 9. Be2 {[%clk 0:02:51]}  cxd4 {[%clk 0:02:36]} 10. Nxd4 {[%clk 0:02:51]}  Re8 {[%clk 0:02:32]} 11. O-O {[%clk 0:02:51]}  Be6 {[%clk 0:02:29]} 12. Bf3 {[%clk 0:02:43]}  Ne5 {[%clk 0:02:14]} 13. Be2 {[%clk 0:02:41]}  a6 {[%clk 0:02:12]} 14. Rc1 {[%clk 0:02:40]}  Qd7 {[%clk 0:02:11]} 15. Nf3 {[%clk 0:02:36]}  Ng6 {[%clk 0:02:02]} 16. Na4 {[%clk 0:02:35]}  Qd6 {[%clk 0:01:48]} 17. Qd4 {[%clk 0:02:20]}  b5 {[%clk 0:01:43]} 18. Nc5 {[%clk 0:02:14]}  Bf8 {[%clk 0:01:34]} 19. a4 {[%clk 0:02:08]}  Rab8 {[%clk 0:01:30]} 20. axb5 {[%clk 0:02:07]}  axb5 {[%clk 0:01:31]} 21. Nxe6 {[%clk 0:02:01]}  fxe6 {[%clk 0:01:26]} 22. Rfd1 {[%clk 0:01:56]}  Qb6 {[%clk 0:01:13]} 23. Qxb6 {[%clk 0:01:51]}  Rxb6 {[%clk 0:01:14]} 24. Nd4 {[%clk 0:01:52]}  b4 {[%clk 0:01:09]} 25. Rc7 {[%clk 0:01:43]}  Ne4 {[%clk 0:01:06]} 26. Rdc1 {[%clk 0:01:35]}  Ne5 {[%clk 0:00:45]} 27. Nb5 {[%clk 0:01:21]}  Nf7 {[%clk 0:00:40]} 28. Bd4 {[%clk 0:01:21]}  Rbb8 {[%clk 0:00:38]} 29. Na7 {[%clk 0:01:15]}  e5 {[%clk 0:00:36]} 30. Bb2 {[%clk 0:01:15]}  Ra8 {[%clk 0:00:36]} 31. Bb5 {[%clk 0:01:12]}  Reb8 {[%clk 0:00:30]} 32. Bc6 {[%clk 0:01:10]}  Rxa7 {[%clk 0:00:29]} 33. Rxa7 {[%clk 0:01:09]}  Rd8 {[%clk 0:00:29]} 34. Rd1 {[%clk 0:01:01]}  Nc3 {[%clk 0:00:21]} 35. Bxc3 {[%clk 0:01:01]}  bxc3 {[%clk 0:00:22]} 36. Bxd5 {[%clk 0:01:02]}  c2 {[%clk 0:00:16]} 37. Bxf7+ {[%clk 0:01:02]}  Kh8 {[%clk 0:00:16]} 38. Rf1 {[%clk 0:01:02]}  Rd1 {[%clk 0:00:02]} 39. Ra1 {[%clk 0:01:02]} 1-0

[Event "November 21 Late 2023"]
[Site "https://www.chess.com"]
[Date "2023.11.21"]
[Round "7"]
[White "Silvestre, Christian"]
[Black "Urbina Perez, Juan Antonio"]
[Result "1-0"]
[Board "104"]
[TimeControl "180+1"]
[WhiteFideId "30956269"]
[BlackFideId "2217368"]
[WhiteElo "2326"]
[BlackElo "2185"]
[WhiteTeam "USA"]
[BlackTeam "ESP"]
[WhiteClock "0:00:46"]
[BlackClock "0:01:08"]

1. e4 {[%clk 0:03:00]}  c6 {[%clk 0:02:55]} 2. Nf3 {[%clk 0:02:59]}  d5 {[%clk 0:02:56]} 3. exd5 {[%clk 0:02:59]}  cxd5 {[%clk 0:02:57]} 4. g3 {[%clk 0:02:59]}  Nf6 {[%clk 0:02:55]} 5. Bg2 {[%clk 0:03:00]}  Nc6 {[%clk 0:02:54]} 6. O-O {[%clk 0:03:01]}  g6 {[%clk 0:02:53]} 7. d4 {[%clk 0:03:00]}  Bg7 {[%clk 0:02:53]} 8. c3 {[%clk 0:03:01]}  O-O {[%clk 0:02:53]} 9. Re1 {[%clk 0:03:02]}  Bg4 {[%clk 0:02:50]} 10. h3 {[%clk 0:03:00]}  Be6 {[%clk 0:02:49]} 11. Nbd2 {[%clk 0:02:55]}  Qc8 {[%clk 0:02:47]} 12. Kh2 {[%clk 0:02:54]}  b5 {[%clk 0:02:44]} 13. Nb3 {[%clk 0:02:54]}  b4 {[%clk 0:02:43]} 14. Nc5 {[%clk 0:02:50]}  Bd7 {[%clk 0:02:41]} 15. cxb4 {[%clk 0:02:44]}  Nxb4 {[%clk 0:02:29]} 16. Rxe7 {[%clk 0:02:41]}  Bf5 {[%clk 0:02:21]} 17. Bf4 {[%clk 0:02:34]}  Ne4 {[%clk 0:02:18]} 18. Rc7 {[%clk 0:02:22]}  Qd8 {[%clk 0:02:16]} 19. Nb7 {[%clk 0:02:17]}  Qe8 {[%clk 0:02:10]} 20. Nd6 {[%clk 0:02:15]}  Qe6 {[%clk 0:01:57]} 21. Nxf5 {[%clk 0:02:02]}  Qxf5 {[%clk 0:01:58]} 22. Qb3 {[%clk 0:01:51]}  a5 {[%clk 0:01:52]} 23. Rf1 {[%clk 0:01:25]}  g5 {[%clk 0:01:49]} 24. Be5 {[%clk 0:01:23]}  g4 {[%clk 0:01:45]} 25. Nh4 {[%clk 0:01:18]}  Qh5 {[%clk 0:01:44]} 26. Bxg7 {[%clk 0:01:17]}  Kxg7 {[%clk 0:01:42]} 27. hxg4 {[%clk 0:01:17]}  Qxg4 {[%clk 0:01:41]} 28. Bh3 {[%clk 0:01:17]}  Qe2 {[%clk 0:01:37]} 29. Qe3 {[%clk 0:00:50]}  Qxe3 {[%clk 0:01:26]} 30. fxe3 {[%clk 0:00:51]}  Rac8 {[%clk 0:01:14]} 31. Rxc8 {[%clk 0:00:45]}  Rxc8 {[%clk 0:01:08]} 32. Bxc8 {[%clk 0:00:46]} 1-0

[Event "November 21 Late 2023"]
[Site "https://www.chess.com"]
[Date "2023.11.21"]
[Round "7"]
[White "Joie, Sebastien"]
[Black "Modric, Nesa"]
[Result "1-0"]
[Board "106"]
[TimeControl "180+1"]
[WhiteFideId "650420"]
[BlackFideId "922579"]
[WhiteElo "2396"]
[BlackElo "2167"]
[WhiteTeam "FRA"]
[BlackTeam "SRB"]
[WhiteClock "0:01:21"]
[BlackClock "0:01:42"]

1. d4 {[%clk 0:02:40]}  d5 {[%clk 0:02:59]} 2. c4 {[%clk 0:02:40]}  e6 {[%clk 0:02:59]} 3. Nc3 {[%clk 0:02:41]}  Nf6 {[%clk 0:02:59]} 4. Nf3 {[%clk 0:02:41]}  Be7 {[%clk 0:02:59]} 5. e3 {[%clk 0:02:42]}  O-O {[%clk 0:02:59]} 6. Bd3 {[%clk 0:02:42]}  b6 {[%clk 0:02:57]} 7. Ne5 {[%clk 0:01:40]}  Bb7 {[%clk 0:02:53]} 8. cxd5 {[%clk 0:01:40]}  exd5 {[%clk 0:02:49]} 9. O-O {[%clk 0:01:34]}  Nbd7 {[%clk 0:02:48]} 10. f4 {[%clk 0:01:33]}  c5 {[%clk 0:02:41]} 11. Qf3 {[%clk 0:01:31]}  c4 {[%clk 0:02:28]} 12. Bc2 {[%clk 0:01:28]}  a6 {[%clk 0:02:18]} 13. Qh3 {[%clk 0:01:23]}  b5 {[%clk 0:02:14]} 14. Nxd7 {[%clk 0:01:21]}  Qxd7 {[%clk 0:01:42]} 15. Bxh7+ {[%clk 0:01:21]} 1-0